bitfinex/quotes_SOLUSD_20250207
["timestamp","ask_amount","ask_price","bid_price","bid_amount"]
[1738902248457,10.11529885,195.43,195.36,10.08529885]
[1738902248749,0.03,195.43,195.36,10.08529885]
[1738902248951,0.03,195.38,195.36,10.08529885]
[1738902249740,0.03,195.38,195.36,15.20389885]
[1738902249932,0.03,195.38,195.37,10.08529885]
[1738902250138,0.03,195.38,195.36,15.20389885]
[1738902250454,0.03,195.38,195.34,10.08529885]
[1738902250656,0.03,195.38,195.33,15.20479885]
[1738902254556,0.03,195.38,195.34,10.08529885]
[1738902255653,0.03,195.38,195.35,10.08529885]
[1738902257873,0.03,195.38,195.34,10.08529885]
[1738902260238,0.03,195.38,195.35,0.063]
[1738902261966,0.03,195.38,195.35,10.14829885]
[1738902268552,0.03,195.38,195.35,0.063]
[1738902269658,0.03,195.38,195.35,10.14829885]
[1738902271771,0.03,195.38,195.35,0.063]
[1738902272973,0.03,195.38,195.35,10.14829885]
[1738902275592,0.03,195.38,195.36,10.08529885]
[1738902275751,0.03,195.38,195.37,10.08529885]
[1738902276781,0.03,195.38,195.37,15.20369885]
[1738902277261,0.03,195.38,195.37,10.08529885]
[1738902278647,0.03,195.38,195.35,0.063]
[1738902279655,0.03,195.38,195.35,10.14829885]
[1738902280172,0.03,195.38,195.36,10.08529885]
[1738902282682,0.03,195.38,195.35,10.14829885]
[1738902283158,0.03,195.38,195.35,15.26719885]
[1738902283479,0.03,195.38,195.35,10.14829885]
[1738902284074,0.03,195.38,195.35,15.26729885]
[1738902284276,0.03,195.38,195.36,10.08529885]
[1738902284863,0.03,195.38,195.37,10.08529885]
[1738902285063,0.03,195.38,195.37,15.20369885]
[1738902286675,0.03,195.43,195.38,0.12549]
[1738902286875,0.03,195.43,195.42,10.08529885]
[1738902288565,0.03,195.43,195.42,15.20239885]
[1738902291957,0.03,195.43,195.4,1.0]
[1738902291958,0.03,195.43,195.41,10.08529885]
[1738902292167,0.03,195.43,195.4,10.08529885]
[1738902293382,0.03,195.43,195.4,15.20289885]
[1738902295889,0.03,195.43,195.4,10.08529885]
[1738902296274,0.03,195.43,195.37,15.20349885]
[1738902296490,0.03,195.43,195.38,10.08529885]
[1738902296690,0.03,195.43,195.39,10.08529885]
[1738902296893,0.03,195.43,195.38,10.08529885]
[1738902298972,0.03,195.43,195.39,10.08529885]
[1738902299170,0.03,195.43,195.4,10.08529885]
[1738902299680,0.03,195.43,195.4,15.20279885]
[1738902300367,0.03,195.43,195.41,10.08529885]
[1738902301875,0.03,195.43,195.41,15.20259885]
[1738902302075,0.03,195.43,195.42,10.08529885]
[1738902302270,0.03,195.43,195.41,15.20259885]
[1738902303995,0.03,195.43,195.39,5.1177]
[1738902304185,0.03,195.43,195.39,15.20299885]
[1738902304390,0.03,195.43,195.39,10.08529885]
[1738902307887,0.03,195.43,195.39,15.20319885]
[1738902308670,0.03,195.43,195.39,15.26619885]
[1738902310095,0.03,195.43,195.4,10.08529885]
[1738902310316,0.03,195.43,195.41,10.08529885]
[1738902311396,0.03,195.43,195.4,10.08529885]
[1738902311592,0.03,195.43,195.39,15.64591329]
[1738902311790,0.03,195.43,195.4,10.08529885]
[1738902311996,0.03,195.43,195.41,5.1174]
[1738902314103,0.03,195.43,195.4,5.1177]
[1738902317100,0.03,195.43,195.39,0.063]
[1738902317304,0.03,195.43,195.39,5.1809]
[1738902318903,9.64529885,195.46,195.39,5.1809]
[1738902319286,14.76139885,195.46,195.39,5.1809]
[1738902320210,9.64529885,195.46,195.39,5.1809]
[1738902321323,10.08529885,195.48,195.4,10.08529885]
[1738902321488,15.20089885,195.48,195.4,10.08529885]
[1738902322709,15.20089885,195.48,195.4,15.20289885]
[1738902326409,10.08529885,195.46,195.39,0.063]
[1738902327213,10.08529885,195.46,195.39,10.14829885]
[1738902328309,15.20139885,195.46,195.39,10.14829885]
[1738902329189,15.20139885,195.46,195.39,15.26609885]
[1738902329808,10.08529885,195.47,195.4,10.08529885]
[1738902330010,7.9826,195.49,195.43,10.08529885]
[1738902330715,18.06789885,195.49,195.43,5.1168]
[1738902332011,7.9826,195.49,195.44,10.08529885]
[1738902332994,7.9826,195.49,195.44,15.20179885]
[1738902334321,7.9826,195.49,195.45,10.08529885]
[1738902334510,7.9826,195.49,195.45,15.20159885]
[1738902334814,15.22979885,195.52,195.45,15.20159885]
[1738902335718,0.03,195.52,195.46,10.08529885]
[1738902335916,0.03,195.52,195.48,10.08529885]
[1738902336299,0.03,195.52,195.47,10.08529885]
[1738902337121,0.03,195.52,195.46,10.08529885]
[1738902338320,0.03,195.52,195.46,15.20119885]
[1738902338912,0.03,195.52,195.47,10.08529885]
[1738902340613,10.11529885,195.52,195.45,10.08529885]
[1738902341517,15.20009885,195.51,195.45,10.08529885]
[1738902341899,15.20009885,195.51,195.44,15.20169885]
[1738902342129,10.08529885,195.5,195.43,10.08529885]
[1738902342313,10.08529885,195.48,195.41,10.08529885]
[1738902343215,15.20109885,195.48,195.41,10.08529885]
[1738902344002,5.1158,195.48,195.42,10.08529885]
[1738902345305,15.20109885,195.48,195.41,10.08529885]
[1738902345503,10.08529885,195.47,195.4,10.08529885]
[1738902345825,10.08529885,195.47,195.41,10.08529885]
[1738902346410,15.20109885,195.47,195.41,10.08529885]
[1738902346611,5.1158,195.47,195.41,10.08529885]
[1738902356108,5.1158,195.47,195.41,10.14829885]
[1738902356314,10.08529885,195.46,195.41,0.063]
[1738902357736,15.20159885,195.46,195.41,0.063]
[1738902357937,5.1163,195.46,195.41,0.063]
[1738902358119,5.1158,195.47,195.42,10.08529885]
[1738902358315,8.1109,195.48,195.42,10.08529885]
[1738902358714,13.2266,195.48,195.42,10.08529885]
[1738902359840,23.31189885,195.48,195.41,10.14829885]
[1738902360137,23.31189885,195.48,195.41,0.063]
[1738902360138,10.08529885,195.47,195.41,0.063]
[1738902360336,10.08529885,195.46,195.41,0.063]
[1738902360661,10.08529885,195.44,195.41,0.063]
[1738902361522,10.08529885,195.43,195.41,0.063]
[1738902361723,15.20239885,195.42,195.41,0.063]
[1738902362120,36.68774738,195.42,195.41,0.063]
[1738902362315,36.93872738,195.42,195.41,0.063]
[1738902362520,37.89858127,195.42,195.41,0.063]
[1738902362920,23.27589885,195.42,195.41,0.063]
[1738902367241,20.0,195.4,195.39,0.063]
[1738902367450,85.04921977,195.4,195.39,0.063]
[1738902368032,44.70802437,195.4,195.39,0.063]
[1738902368225,49.82572437,195.4,195.39,0.063]
[1738902371648,33.78831853,195.36,195.35,0.0001]
[1738902371825,44.83380771,195.36,195.35,0.0001]
[1738902372228,49.95250771,195.36,195.35,0.0001]
[1738902374229,80.95250771,195.36,195.35,0.0001]
[1738902374428,79.95250771,195.36,195.35,0.0001]
[1738902374630,80.95250771,195.36,195.35,0.0001]
[1738902374846,79.95250771,195.36,195.35,0.0001]
[1738902375042,49.95250771,195.36,195.35,0.0001]
[1738902376646,49.57603771,195.36,195.35,0.0001]
[1738902376837,35.20399885,195.36,195.35,0.0001]
[1738902377032,10.08529885,195.36,195.35,0.0001]
[1738902377549,15.20379885,195.37,195.35,0.0001]
[1738902377846,10.08529885,195.38,195.35,0.0001]
[1738902381031,15.20349885,195.38,195.35,0.0001]
[1738902381232,23.49714738,195.36,195.35,0.0001]
[1738902381860,43.49714738,195.36,195.35,0.0001]
[1738902382358,44.70820567,195.36,195.35,0.0001]
[1738902382860,43.49714738,195.36,195.35,0.0001]
[1738902383362,48.61584738,195.36,195.35,0.0001]
[1738902383857,10.08529885,195.37,195.35,0.0001]
[1738902384045,15.23369885,195.38,195.35,0.0001]
[1738902384667,10.08529885,195.37,195.35,0.0001]
[1738902385555,15.20379885,195.37,195.35,0.0001]
[1738902386461,10.08529885,195.36,195.35,0.0001]
[1738902387054,15.20399885,195.36,195.35,0.0001]
[1738902390157,5.1187,195.36,195.35,0.0001]
[1738902390363,10.08529885,195.37,195.35,0.0001]
[1738902390873,5.1484,195.38,195.35,0.0001]
[1738902390874,0.03,195.38,195.35,0.0001]
[1738902391443,15.23349885,195.38,195.35,0.0001]
[1738902391963,0.03,195.38,195.35,0.0001]
[1738902393048,10.11529885,195.38,195.35,0.0001]
[1738902394862,0.03,195.38,195.35,0.0001]
[1738902395571,10.11529885,195.38,195.35,0.0001]
[1738902395978,0.03,195.38,195.35,0.0001]
[1738902396366,10.11529885,195.38,195.35,0.0001]
[1738902397484,15.23349885,195.38,195.35,0.0001]
[1738902402781,10.08529885,195.37,195.35,0.0001]
[1738902404080,15.20369885,195.37,195.35,0.0001]
[1738902406185,10.11529885,195.38,195.35,0.0001]
[1738902406679,0.03,195.38,195.35,0.0001]
[1738902409687,0.03,195.38,195.37,10.08529885]
[1738902409870,15.23159885,195.46,195.37,10.21078885]
[1738902409871,0.03,195.46,195.37,10.21078885]
[1738902410072,0.03,195.46,195.42,10.08529885]
[1738902410270,0.03,195.46,195.43,10.08529885]
[1738902410886,0.03,195.46,195.44,10.08529885]
[1738902411687,0.03,195.46,195.43,10.08529885]
[1738902412188,0.03,195.46,195.42,10.08529885]
[1738902412502,0.03,195.46,195.4,10.08529885]
[1738902412685,0.03,195.46,195.38,147.28529885]
[1738902412686,10.08529885,195.45,195.38,147.28529885]
[1738902412875,10.08529885,195.45,195.38,10.08529885]
[1738902413272,10.08529885,195.43,195.37,5.1184]
[1738902413765,10.08529885,195.44,195.37,15.20369885]
[1738902414896,10.08529885,195.45,195.37,15.20369885]
[1738902415288,10.08529885,195.44,195.37,10.08529885]
[1738902415490,10.08529885,195.43,195.36,15.20399885]
[1738902416072,10.08529885,195.43,195.36,10.08529885]
[1738902417507,15.20219885,195.43,195.36,10.08529885]
[1738902420101,0.03,195.44,195.4,10.08529885]
[1738902420274,0.03,195.44,195.42,10.08529885]
[1738902420476,0.03,195.44,195.4,10.08529885]
[1738902421182,0.03,195.44,195.41,10.08529885]
[1738902422704,0.03,195.44,195.41,15.20269885]
[1738902422905,0.03,195.44,195.43,10.08529885]
[1738902424796,0.03,195.44,195.43,15.20219885]
[1738902425776,0.03,195.44,195.38,15.20339885]
[1738902426278,0.03,195.44,195.39,10.08529885]
[1738902428499,0.03,195.44,195.4,10.08529885]
[1738902428720,0.03,195.44,195.41,10.08529885]
[1738902429212,0.03,195.44,195.4,10.08529885]
[1738902437019,20.0,195.42,195.38,0.063]
[1738902437222,30.08529885,195.39,195.35,0.0001]
[1738902437386,13.41184853,195.36,195.35,0.0001]
[1738902437590,14.3718933,195.36,195.35,0.0001]
[1738902438204,24.45719215,195.36,195.35,0.0001]
[1738902438607,30.12234206,195.36,195.35,0.0001]
[1738902439115,35.24104206,195.36,195.35,0.0001]
[1738902441118,15.75044876,195.36,195.35,0.0001]
[1738902441289,26.1775,195.37,195.35,0.0001]
[1738902441290,6.1775,195.37,195.35,0.0001]
[1738902441491,11.2961,195.37,195.35,0.0001]
[1738902441925,15.75044876,195.36,195.35,0.0001]
[1738902442719,34.28099729,195.36,195.35,0.0001]
[1738902443834,35.49199498,195.36,195.35,0.0001]
[1738902447034,35.61748498,195.36,195.35,0.0001]
[1738902447420,66.61748498,195.36,195.35,0.0001]
[1738902447924,20.0,195.31,195.28,0.063]
[1738902448122,29.16229729,195.29,195.28,0.063]
[1738902448313,13.41184853,195.29,195.28,0.063]
[1738902448949,18.53234853,195.29,195.28,0.063]
[1738902449320,34.53377729,195.29,195.28,0.063]
[1738902449719,35.49426165,195.29,195.28,0.063]
[1738902450516,19.71483853,195.28,195.27,0.063]
[1738902450720,35.46528729,195.28,195.27,0.063]
[1738902451242,40.58608729,195.28,195.27,0.063]
[1738902453520,40.58608729,195.28,195.21,0.063]
[1738902453521,20.0,195.25,195.21,0.063]
[1738902453733,15.75044876,195.22,195.21,0.063]
[1738902453925,30.12306245,195.22,195.21,0.063]
[1738902454124,30.37404245,195.22,195.21,0.063]
[1738902454532,30.49953245,195.22,195.21,0.063]
[1738902456024,35.62193245,195.22,195.21,0.063]
[1738902457740,34.28469729,195.22,195.21,0.063]
[1738902458039,18.53424853,195.22,195.21,0.063]
[1738902458437,34.28469729,195.22,195.21,0.063]
[1738902458941,15.75044876,195.24,195.21,0.063]
[1738902460253,29.16229729,195.23,195.21,0.063]
[1738902460445,29.16229729,195.22,195.21,0.063]
[1738902461354,34.28469729,195.22,195.21,0.063]
[1738902462252,34.53567729,195.22,195.21,0.063]
[1738902462559,82.97501605,195.22,195.21,0.0001]
[1738902464651,83.97501605,195.22,195.21,0.0001]
[1738902464951,84.93604615,195.22,195.21,0.0001]
[1738902465128,51.37647,195.2,195.19,0.0001]
[1738902465447,30.25098,195.18,195.17,0.063]
[1738902465628,60.37439583,195.18,195.17,0.063]
[1738902465952,30.37439583,195.18,195.17,0.063]
[1738902466146,30.12341583,195.18,195.17,0.063]
[1738902467025,35.24681583,195.18,195.17,0.063]
[1738902468257,15.75044876,195.2,195.17,0.063]
[1738902468423,15.75044876,195.21,195.17,0.063]
[1738902471674,20.87304876,195.21,195.17,0.063]
[1738902472875,20.87254876,195.23,195.17,0.063]
[1738902474240,15.75044876,195.22,195.17,0.063]
[1738902475834,15.75044876,195.23,195.17,0.063]
[1738902476857,15.75044876,195.22,195.17,0.063]
[1738902478784,15.75044876,195.21,195.17,0.063]
[1738902478970,6.08273182,195.23,195.17,0.063]
[1738902478971,15.75044876,195.2,195.17,0.063]
[1738902479168,5.1224,195.22,195.17,0.063]
[1738902479169,15.75044876,195.19,195.17,0.063]
[1738902480543,15.75044876,195.2,195.17,0.063]
[1738902484967,20.87314876,195.21,195.17,0.063]
[1738902488978,20.90314876,195.21,195.17,0.063]
[1738902490675,15.24668196,195.21,195.17,0.063]
[1738902491779,0.03,195.21,195.17,0.063]
[1738902491959,0.03,195.21,195.18,10.09398196]
[1738902492273,0.03,195.21,195.17,0.063]
[1738902495883,10.09398196,195.19,195.17,0.063]
[1738902497069,11.05484239,195.19,195.17,0.063]
[1738902497682,16.17804239,195.19,195.17,0.063]
[1738902498380,13.78831853,195.18,195.17,0.063]
[1738902499176,18.91171853,195.18,195.17,0.063]
[1738902499458,29.00570049,195.18,195.17,0.063]
[1738902499858,32.86570049,195.18,195.17,0.063]
[1738902500993,34.86570049,195.18,195.17,0.063]
[1738902503688,33.86570049,195.18,195.17,0.063]
[1738902505062,32.86570049,195.18,195.17,0.063]
[1738902505270,33.86570049,195.18,195.17,0.063]
[1738902513791,1.37647,195.16,195.15,0.063]
[1738902513969,12.43170239,195.16,195.15,0.063]
[1738902514288,20.12549,195.12,195.07,0.063]
[1738902514493,10.09398196,195.08,195.07,0.063]
[1738902514879,11.30639671,195.08,195.07,0.063]
[1738902515073,11.43188671,195.08,195.07,0.063]
[1738902516373,16.55798671,195.08,195.07,0.063]
[1738902517182,20.41798671,195.08,195.07,0.063]
[1738902517498,20.12549,195.04,195.01,0.063]
[1738902517679,10.09398196,195.02,195.01,0.063]
[1738902517879,10.34496196,195.02,195.01,0.063]
[1738902519171,40.47045196,195.02,195.01,0.063]
[1738902519377,10.47045196,195.02,195.01,0.063]
[1738902519783,10.34496196,195.02,195.01,0.063]
[1738902520115,10.09398196,195.02,195.01,0.063]
[1738902520293,10.09398196,195.03,195.01,0.063]
[1738902521680,10.09398196,195.04,195.01,0.063]
[1738902522580,10.09398196,195.08,195.01,10.15698196]
[1738902522788,10.09398196,195.09,195.02,10.09398196]
[1738902523104,10.09398196,195.1,195.03,10.09398196]
[1738902523283,10.09398196,195.1,195.04,15.22098196]
[1738902523484,10.09398196,195.1,195.03,11.70838196]
[1738902523685,10.09398196,195.09,195.03,1.6144]
[1738902524581,35.79163693,195.09,195.03,1.6144]
[1738902526889,0.12549,195.06,195.01,0.063]
[1738902527083,36.87863189,195.06,195.01,0.063]
[1738902527405,15.79163693,195.05,195.01,0.063]
[1738902527603,16.75324493,195.05,195.01,0.063]
[1738902527902,15.79163693,195.05,195.01,0.063]
[1738902528201,35.79163693,195.06,195.01,0.063]
[1738902530128,1.21250568,195.08,195.01,15.85463693]
[1738902530129,20.0,195.05,195.01,15.85463693]
[1738902530709,0.12549,195.08,195.03,15.79163693]
[1738902531119,0.12549,195.08,195.01,0.063]
[1738902531120,20.12549,195.08,195.04,15.79163693]
[1738902531304,20.12549,195.08,195.03,15.79163693]
[1738902534816,20.12549,195.08,195.03,15.85463693]
[1738902535823,20.0,195.09,195.04,15.79163693]
[1738902536127,20.0,195.09,195.05,15.79163693]
[1738902536699,20.0,195.09,195.04,15.79163693]
[1738902538708,20.0,195.08,195.04,15.79163693]
[1738902543145,20.0,195.09,195.07,15.79163693]
[1738902543504,20.0,195.09,195.06,15.79163693]
[1738902545240,20.0,195.1,195.06,15.79163693]
[1738902546629,20.0,195.1,195.06,10.1041831]
[1738902547712,20.03,195.1,195.06,10.1041831]
[1738902549048,0.03,195.1,195.07,10.1041831]
[1738902549341,0.03,195.1,195.08,10.1041831]
[1738902550045,0.03,195.1,195.07,10.1041831]
[1738902553146,0.03,195.1,195.08,10.1041831]
[1738902558430,10.1341831,195.1,195.04,10.1671831]
[1738902558635,0.96136009,195.09,195.04,0.063]
[1738902559129,0.03,195.1,195.05,10.1041831]
[1738902559344,0.99127501,195.1,195.05,10.1041831]
[1738902559655,0.03,195.1,195.05,10.1041831]
[1738902560362,20.03,195.1,195.07,10.1041831]
[1738902560660,0.03,195.1,195.09,10.1041831]
[1738902561325,0.03,195.1,195.08,10.1041831]
[1738902563243,0.03,195.1,195.08,15.2301831]
[1738902563631,0.03,195.1,195.09,10.1041831]
[1738902565555,0.03,195.1,195.09,23.51603163]
[1738902565746,0.03,195.1,195.09,28.64183163]
[1738902574555,1.5748,195.21,195.1,13.41184853]
[1738902574758,0.03,195.21,195.17,10.1041831]
[1738902575138,0.03,195.21,195.17,23.51603163]
[1738902584376,10.1041831,195.2,195.13,10.1041831]
[1738902584670,11.06500671,195.2,195.14,13.41184853]
[1738902586867,10.1041831,195.2,195.14,13.41184853]
[1738902587173,20.0,195.17,195.12,10.1041831]
[1738902587471,20.0,195.16,195.12,10.1041831]
[1738902588845,1.5762,195.2,195.14,23.51603163]
[1738902589049,1.5762,195.2,195.16,10.1041831]
[1738902589273,20.0,195.19,195.16,10.1041831]
[1738902589460,20.0,195.19,195.15,10.1041831]
[1738902592974,20.0,195.19,195.15,15.2283831]
[1738902593467,20.0,195.19,195.16,10.1041831]
[1738902594573,20.0,195.19,195.15,5.1242]
[1738902595249,30.1041831,195.19,195.14,18.53634853]
[1738902595966,20.0,195.19,195.14,18.53634853]
[1738902596871,20.0,195.19,195.14,28.64053163]
[1738902597070,20.0,195.19,195.15,10.1041831]
[1738902597858,20.0,195.19,195.14,18.53634853]
[1738902598575,10.1041831,195.17,195.12,5.1248]
[1738902598769,30.1041831,195.15,195.1,5.1883]
[1738902598968,30.1041831,195.15,195.1,0.063]
[1738902599156,0.25098,195.17,195.1,5.1885]
[1738902599157,10.1041831,195.17,195.1,5.1885]
[1738902599363,10.1041831,195.17,195.11,13.41184853]
[1738902599560,6.4801,195.18,195.11,13.41184853]
[1738902600373,6.4801,195.18,195.13,13.41184853]
[1738902602066,0.03,195.18,195.15,13.41184853]
[1738902602370,0.03,195.18,195.15,18.53594853]
[1738902604580,0.03,195.18,195.13,5.1245]
[1738902606377,0.03,195.18,195.13,18.53634853]
[1738902606584,0.03,195.18,195.17,10.1041831]
[1738902606753,0.03,195.21,195.17,23.89801874]
[1738902606958,0.03,195.21,195.2,23.51603163]
[1738902607563,0.03,195.29,195.21,13.41184853]
[1738902607777,0.03,195.29,195.24,10.1041831]
[1738902607982,10.1341831,195.29,195.22,10.1041831]
[1738902608470,0.03,195.29,195.23,13.41184853]
[1738902608671,0.03,195.29,195.23,18.53374853]
[1738902609771,0.03,195.29,195.23,28.63793163]
[1738902610160,0.03,195.29,195.24,10.1041831]
[1738902610784,0.03,195.29,195.23,28.63793163]
[1738902611288,0.03,195.29,195.25,13.41184853]
[1738902611460,0.03,195.29,195.25,18.53344853]
[1738902613089,0.03,195.29,195.25,5.1216]
[1738902614888,0.03,195.29,195.24,5.1219]
[1738902615076,10.1341831,195.29,195.22,23.51603163]
[1738902615277,10.1041831,195.27,195.22,18.53394853]
[1738902616072,10.1041831,195.27,195.2,15.2267831]
[1738902616473,0.03,195.29,195.24,13.41184853]
[1738902616689,0.03,195.29,195.24,10.1041831]
[1738902617070,0.03,195.29,195.25,5.1216]
[1738902621279,0.03,195.29,195.26,13.41184853]
[1738902623181,0.03,195.29,195.27,5.1211]
[1738902625679,0.03,195.29,195.25,5.1216]
[1738902626197,20.03,195.29,195.26,13.41184853]
[1738902627084,20.03,195.29,195.26,18.53314853]
[1738902629085,0.03,195.29,195.26,18.53314853]
[1738902629604,0.03,195.29,195.28,13.41184853]
[1738902631676,0.03,195.29,195.27,13.41184853]
[1738902631907,0.03,195.29,195.26,18.53314853]
[1738902632218,0.03,195.29,195.26,28.63733163]
[1738902634006,0.03,195.29,195.26,18.53314853]
[1738902635306,10.11260916,195.29,195.23,5.1221]
[1738902635506,0.03,195.29,195.24,13.41184853]
[1738902636176,0.03,195.29,195.23,13.41184853]
[1738902636402,0.03,195.29,195.23,18.53394853]
[1738902640707,0.03,195.29,195.23,18.91537101]
[1738902641085,0.03,195.29,195.23,18.53394853]
[1738902641292,0.03,195.3,195.26,14.53733853]
[1738902641595,0.03,195.3,195.28,13.41184853]
[1738902641800,0.03,195.3,195.28,150.61184853]
[1738902642599,0.03,195.3,195.29,18.53234853]
[1738902646015,0.03,195.38,195.29,155.85783853]
[1738902646219,0.03,195.38,195.3,13.53733853]
[1738902646415,0.03,195.38,195.32,13.41184853]
[1738902647721,0.03,195.38,195.34,13.41184853]
[1738902649405,0.03,195.38,195.32,18.53164853]
[1738902649601,0.03,195.38,195.32,32.33114853]
[1738902649804,0.03,195.38,195.32,31.71146246]
[1738902653920,0.03,195.38,195.32,32.71146246]
[1738902654121,0.03,195.38,195.34,13.41184853]
[1738902654925,0.03,195.39,195.37,20.0]
[1738902655134,0.98963926,195.46,195.38,14.7921521]
[1738902655135,0.03,195.46,195.38,14.7921521]
[1738902655419,0.03,195.46,195.39,2.0]
[1738902655596,20.0,195.45,195.4,7.79898732]
[1738902655801,7.7322,195.44,195.33,2.38011491]
[1738902656002,7.7322,195.44,195.36,13.41184853]
[1738902656229,7.7322,195.44,195.36,13.79173389]
[1738902656427,0.03,195.46,195.37,0.12549]
[1738902656605,0.03,195.46,195.38,13.79161134]
[1738902657704,0.03,195.46,195.4,13.41184853]
[1738902657928,0.03,195.46,195.4,13.79138517]
[1738902659338,0.03,195.46,195.42,13.41184853]
[1738902660416,0.03,195.46,195.41,18.52924853]
[1738902662019,0.03,195.46,195.42,1.0]
[1738902662216,0.03,195.46,195.42,1.3793072]
[1738902662530,0.03,195.46,195.42,0.3793072]
[1738902662711,0.03,195.46,195.41,31.32284853]
[1738902663431,0.03,195.46,195.41,31.70239194]
[1738902663930,0.03,195.46,195.42,0.12549]
[1738902664130,0.03,195.46,195.44,13.41184853]
[1738902665116,0.0001,195.46,195.45,18.90727115]
[1738902665315,0.03,195.49,195.46,13.41184853]
[1738902666436,0.03,195.49,195.48,13.41184853]
[1738902667329,0.03,195.49,195.46,0.37888513]
[1738902667534,0.03,195.49,195.47,18.52764853]
[1738902674350,0.03,195.49,195.41,17.9104]
[1738902674858,0.03,195.49,195.42,13.41184853]
[1738902675360,0.03,195.49,195.43,5.1169]
[1738902676454,10.08260916,195.48,195.4,5.1177]
[1738902676858,30.11260916,195.49,195.41,13.41184853]
[1738902677352,0.03,195.49,195.4,31.32374853]
[1738902677534,0.03,195.49,195.4,31.70341785]
[1738902677949,8.0104,195.46,195.4,18.52954853]
[1738902678153,10.08260916,195.45,195.37,5.1184]
[1738902678352,10.08260916,195.44,195.37,5.1184]
[1738902678725,10.08260916,195.45,195.38,13.41184853]
[1738902679041,18.09300916,195.46,195.38,13.41184853]
[1738902679231,8.0104,195.46,195.38,13.41184853]
[1738902680269,8.0104,195.46,195.36,18.53054853]
[1738902681428,18.09300916,195.46,195.36,18.53054853]
[1738902681944,18.09300916,195.46,195.36,18.59354853]
[1738902682852,10.08260916,195.45,195.36,18.59354853]
[1738902683231,18.09300916,195.46,195.36,18.59354853]
[1738902683629,10.08260916,195.45,195.36,18.59354853]
[1738902684123,18.09300916,195.46,195.36,18.59354853]
[1738902684327,8.0104,195.46,195.36,18.59354853]
[1738902686047,8.0104,195.46,195.37,0.12549]
[1738902686353,8.0104,195.46,195.38,5.1182]
[1738902687252,10.08260916,195.45,195.38,5.1182]
[1738902687461,10.08260916,195.44,195.36,18.59334853]
[1738902687650,10.08260916,195.43,195.36,18.59334853]
[1738902687828,30.08260916,195.43,195.36,18.59334853]
[1738902688037,10.08260916,195.42,195.36,0.063]
[1738902688350,7.7932,195.4,195.36,0.063]
[1738902691263,17.87580916,195.4,195.36,0.063]
[1738902691454,16.87580916,195.4,195.36,0.063]
[1738902691643,10.08260916,195.39,195.36,0.063]
[1738902694463,17.83565074,195.4,195.36,0.063]
[1738902694639,16.87580916,195.4,195.36,0.063]
[1738902695164,10.08260916,195.39,195.36,0.063]
[1738902696363,6.07783506,195.39,195.36,0.063]
[1738902696656,30.08260916,195.37,195.36,0.063]
[1738902696963,61.29356123,195.37,195.36,0.063]
[1738902697277,68.93756123,195.37,195.36,0.063]
[1738902697634,38.81207123,195.37,195.36,0.063]
[1738902698034,37.72660916,195.37,195.36,0.063]
[1738902698263,27.644,195.37,195.36,0.063]
[1738902698965,38.81197717,195.37,195.36,0.063]
[1738902699373,43.93037717,195.37,195.36,0.063]
[1738902700068,38.81197717,195.37,195.36,0.063]
[1738902700577,7.644,195.37,195.36,0.063]
[1738902700758,1.6365,195.42,195.36,0.063]
[1738902701478,20.0,195.4,195.36,0.063]
[1738902701681,6.1785,195.43,195.36,0.063]
[1738902701893,11.59400916,195.47,195.36,0.063]
[1738902702482,11.59400916,195.47,195.36,13.47484853]
[1738902702669,20.0,195.44,195.37,5.1184]
[1738902704162,17.24196389,195.47,195.38,13.41184853]
[1738902705873,17.24196389,195.47,195.36,0.063]
[1738902706056,15.73056389,195.46,195.37,5.1184]
[1738902706686,20.0,195.45,195.38,13.41184853]